fUST/lending_fUST_20251216
["ID","MTS","AMOUNT","RATE_DAILY","PERIOD"]
[398565866,1765836277186,152.5571425,9.737e-05,2]
[398565874,1765836301106,150.0,7.214e-05,2]
[398565882,1765836333796,718.46187324,0.00010138,2]
[398565886,1765836400099,-152.70969964,0.00010237,2]
[398565887,1765836400121,-200.63930036,0.0001024,2]
[398565888,1765836428478,150.0,7.375e-05,2]
[398565889,1765836428900,150.0,8.045e-05,2]
[398565890,1765836429294,150.0,8.716e-05,2]
[398565891,1765836429698,150.0,9.386e-05,2]
[398565892,1765836430628,150.0,0.00010057,2]
[398565893,1765836445095,-53.23319211,0.0001024,2]
[398565894,1765836445115,-300.0,0.00010243,2]
[398565895,1765836445137,-250.0,0.00010244,2]
[398565896,1765836445158,-574.12855637,0.00010244,2]
[398565897,1765836445178,-61.10886522,0.00010244,2]
[398565899,1765836498632,150.0,8.049e-05,2]
[398565900,1765836499025,150.0,8.781e-05,2]
[398565901,1765836499409,150.0,9.513e-05,2]
[398565903,1765836583171,150.0,8.07e-05,2]
[398565904,1765836583557,150.0,8.804e-05,2]
[398565905,1765836583948,150.0,9.537e-05,2]
[398565952,1765836638569,-300.0,0.00010243,2]
[398565953,1765836638579,-331.11717077,0.00010243,2]
[398565954,1765836638623,-232.88282923,0.00010243,2]
[398565955,1765836638632,-807.25407087,0.00010244,2]
[398565956,1765836638644,-192.74592913,0.00010244,2]
[398565957,1765836638654,-323.98320366,0.00010244,2]
[398565958,1765836638664,-574.12855637,0.00010244,2]
[398565959,1765836638674,-500.0,0.00010244,2]
[398565960,1765836638683,-28.52803477,0.00010244,2]
[398565961,1765836638709,-297.2090077,0.00010244,2]
[398565962,1765836638720,-174.26295753,0.00010244,2]
[398565963,1765836638730,-117.03719747,0.00010244,2]
[398565965,1765836638742,-382.96280253,0.00010244,2]
[398565966,1765836638751,-500.0,0.00010244,2]
[398565967,1765836638760,-500.0,0.00010244,2]
[398565968,1765836638770,-500.0,0.00010244,2]
[398565969,1765836638779,-438.89113478,0.00010244,2]
[398565970,1765836638788,-250.0,0.00010244,2]
[398565971,1765836638798,-250.0,0.00010244,2]
[398565972,1765836638808,-256.76277994,0.00010244,2]
[398565973,1765836638817,-150.0,0.00010244,2]
[398565974,1765836638827,-181.61453449,0.00010249,2]
[398565975,1765836638836,-204.31976017,0.00010249,2]
[398565976,1765836638846,-1364.5145245,0.0001025,2]
[398565980,1765836640853,-927.8073366,0.0001025,2]
[398565981,1765836640866,-302.07506331,0.0001025,2]
[398565986,1765836640907,-22488.50745001,0.0001025,2]
[398565988,1765836640918,-429.42624312,0.0001025,2]
[398566006,1765836643667,-666.15559538,0.0001025,2]
[398566007,1765836643679,-447.54,0.0001025,2]
[398566008,1765836643794,-2740.0,0.0001025,2]
[398566035,1765836646812,-586.36369892,0.0001025,2]
[398566036,1765836646823,-26251.43397962,0.0001025,2]
[398566037,1765836646837,-1762.37238713,0.0001025,2]
[398566038,1765836646848,-8617.99676125,0.0001025,2]
[398566039,1765836646868,-13030.93769088,0.0001025,2]
[398566040,1765836646881,-710.91975373,0.0001025,2]
[398566042,1765836649451,150.0,8.052e-05,2]
[398566043,1765836650612,150.0,8.784e-05,2]
[398566044,1765836650787,150.0,9.516e-05,2]
[398566056,1765836932582,171.6196785,0.00010017,2]
[398566057,1765836934780,308.60650588,0.00010017,2]
[398566061,1765837022384,300.0,0.00010149,2]
[398566064,1765837033483,329.39974047,0.00010017,2]
[398566066,1765837071999,180.4884548,0.00010082,2]
[398566067,1765837082300,300.0,0.00010149,2]
[398566068,1765837111614,223.26499982,0.00010149,2]
[398566069,1765837142482,300.0,0.00010149,2]
[398566076,1765837202192,300.0,0.00010149,2]
[398566079,1765837205318,562.0,0.0001015,2]
[398566112,1765837262566,300.0,0.00010149,2]
[398566136,1765837304009,406.641,0.0001015,2]
[398566138,1765837323095,300.0,0.00010149,2]
[398566139,1765837328834,252.97488651,0.0001015,2]
[398566141,1765837355496,200.0,0.0001,2]
[398566142,1765837382251,300.0,0.00010149,2]
[398566146,1765837442541,300.0,0.00010149,2]
[398566148,1765837502151,300.0,0.00010149,2]
[398566149,1765837506742,530.34130518,0.00010144,2]
[398566150,1765837512943,574.12855637,0.00010144,2]
[398566153,1765837523450,333.0,0.00010144,2]
[398566154,1765837535927,390.32494402,9.924e-05,2]
[398566155,1765837541443,150.0,7.557e-05,2]
[398566156,1765837544457,-5686.34929658,0.0001015,2]
[398566157,1765837544488,-7623.11381563,0.0001015,2]
[398566159,1765837562301,300.0,0.00010149,2]
[398566162,1765837622345,300.0,0.00010149,2]
[398566171,1765837652126,-507.90058519,0.0001015,2]
[398566172,1765837652451,156.28549988,0.00010149,2]
[398566204,1765837831814,-300.0,0.00010149,2]
[398566205,1765837831823,-562.0,0.00010149,2]
[398566206,1765837831832,-1000.0,0.0001015,2]
[398566207,1765837831841,-574.12855637,0.0001015,2]
[398566208,1765837831850,-15452.73209758,0.0001015,2]
[398566209,1765837831861,-1006.82962107,0.0001015,2]
[398566215,1765837837802,-83216.46994932,0.0001015,2]
[398566216,1765837837813,-411.8903443,0.0001015,2]
[398566217,1765837837824,-500.0,0.0001015,2]
[398566292,1765837842948,-32328.24231336,0.0001015,2]
[398566296,1765837845957,-4592.06060397,0.0001015,2]
[398566298,1765837846299,-1483.80832783,0.0001015,2]
[398566299,1765837863362,-258.22366975,0.0001004,2]
[398566321,1765838026177,9483.5626605,0.0001005,2]
[398566322,1765838026205,10000.01,0.0001005,2]
[398566323,1765838026230,10000.01,0.0001005,2]
[398566324,1765838026257,10000.01,0.0001005,2]
[398566325,1765838026282,10000.01,0.0001005,2]
[398566326,1765838026308,10000.01,0.0001005,2]
[398566327,1765838026333,10000.01,0.0001005,2]
[398566328,1765838026357,10000.01,0.0001005,2]
[398566329,1765838026382,10000.01,0.0001005,2]
[398566330,1765838026407,10000.01,0.0001005,2]
[398566339,1765838046124,-300.0,0.00010049,2]
[398566341,1765838116300,150.0,7.173e-05,2]
[398566342,1765838116756,150.0,7.826e-05,2]
[398566343,1765838117094,150.0,8.478e-05,2]
[398566344,1765838117691,150.0,9.13e-05,2]
[398566345,1765838117884,150.0,9.782e-05,2]
[398566363,1765838184510,150.0,7.183e-05,2]
[398566364,1765838184905,150.0,7.836e-05,2]
[398566365,1765838185578,150.0,8.489e-05,2]
[398566366,1765838185996,150.0,9.142e-05,2]
[398566367,1765838186172,150.0,9.795e-05,2]
[398566370,1765838219350,-300.0,0.00010048,2]
[398566371,1765838219380,-1200.0,0.00010048,2]
[398566372,1765838219408,-300.0,0.00010048,2]
[398566373,1765838219614,-4060.17183962,0.00010049,2]
[398566374,1765838219698,-3633.52684087,0.00010049,2]
[398566375,1765838219727,-500.0,0.00010049,2]
[398566376,1765838220010,-302.15702599,0.00010049,2]
[398566377,1765838220039,-176.30556354,0.00010049,2]
[398566378,1765838220266,-776.0311392,0.0001005,2]
[398566379,1765838220319,-10000.01,0.0001005,2]
[398566380,1765838220356,-10000.01,0.0001005,2]
[398566381,1765838220409,-10000.01,0.0001005,2]
[398566382,1765838220442,-10000.01,0.0001005,2]
[398566383,1765838220472,-10000.01,0.0001005,2]
[398566384,1765838220623,-10000.01,0.0001005,2]
[398566385,1765838220905,-10000.01,0.0001005,2]
[398566388,1765838230613,-300.0,0.00010049,2]
[398566389,1765838230662,-9400.01,0.0001005,2]
[398566392,1765838240049,-10000.01,0.0001005,2]
[398566393,1765838240143,-10000.01,0.0001005,2]
[398566394,1765838240286,-10000.01,0.0001005,2]
[398566395,1765838240402,-10000.01,0.0001005,2]
[398566396,1765838240542,-10000.01,0.0001005,2]
[398566397,1765838240635,-10000.01,0.0001005,2]
[398566398,1765838240772,-10000.01,0.0001005,2]
[398566400,1765838251709,150.0,7.186e-05,2]
[398566401,1765838252106,150.0,7.839e-05,2]
[398566402,1765838264288,-150.0,8.492e-05,2]
[398566403,1765838264324,-150.0,9.146e-05,2]
[398566404,1765838264354,-150.0,9.799e-05,2]
[398566405,1765838264383,-172.50948724,9.924e-05,2]
[398566406,1765838264412,-310.51707703,9.924e-05,2]
[398566407,1765838264439,-552.03035917,9.924e-05,2]
[398566408,1765838264468,-862.54743621,9.924e-05,2]
[398566409,1765838264496,-1240.82623983,9.924e-05,2]
[398566410,1765838264525,-500.0,0.00010049,2]
[398566411,1765838264554,-254.8818731,0.00010049,2]
[398566412,1765838264583,-515.88642388,0.00010049,2]
[398566413,1765838264649,-500.0,0.00010049,2]
[398566414,1765838265210,-281.61220708,0.0001005,2]
[398566415,1765838265250,-9000.01,0.0001005,2]
[398566416,1765838265292,-10000.01,0.0001005,2]
[398566418,1765838294557,-166.40692821,9.001e-05,2]
[398566427,1765838321121,150.0,7.18e-05,2]
[398566429,1765838321535,150.0,7.833e-05,2]
[398566433,1765838324934,-160.25,8.485e-05,2]
[398566434,1765838324955,-37.19307179,9.001e-05,2]
[398566435,1765838324979,-213.67,9.138e-05,2]
[398566436,1765838325003,-141.4181694,9.791e-05,2]
[398566445,1765838361348,-125.6718306,9.791e-05,2]
[398566446,1765838361378,-300.0,0.00010048,2]
[398566454,1765838396746,500.0,0.0001004,2]
[398566455,1765838397297,150.0,7.217e-05,2]
[398566457,1765838397699,150.0,7.873e-05,2]
[398566458,1765838397755,150.0,0.0001004,2]
[398566459,1765838398142,150.0,8.53e-05,2]
[398566460,1765838398541,173.4,9.186e-05,2]
[398566461,1765838398676,500.0,0.0001004,2]
[398566462,1765838398934,216.75,9.842e-05,2]
[398566463,1765838399538,198.0,0.0001004,2]
[398566464,1765838400131,500.0,0.0001004,2]
[398566465,1765838400531,500.0,0.0001004,2]
[398566466,1765838400559,500.0,0.0001004,2]
[398566467,1765838401474,500.0,0.0001004,2]
[398566468,1765838402052,1200.0,0.00010048,2]
[398566469,1765838402204,467.0,0.0001004,2]
[398566470,1765838402750,500.0,0.0001004,2]
[398566472,1765838404469,300.0,0.00010048,2]
[398566473,1765838405355,681.0,0.0001004,2]
[398566474,1765838412830,1812.5163388,9.96e-05,2]
[398566475,1765838412852,4342.4426056,9.96e-05,2]
[398566476,1765838449083,220.21151435,9.832e-05,2]
[398566477,1765838451245,251.67030211,9.832e-05,2]
[398566478,1765838453512,392.8416122,9.832e-05,2]
[398566479,1765838462809,300.0,0.00010047,2]
[398566480,1765838471607,150.0,7.175e-05,2]
[398566481,1765838471992,150.0,7.827e-05,2]
[398566482,1765838472410,150.0,8.479e-05,2]
[398566483,1765838473160,150.0,9.132e-05,2]
[398566484,1765838473232,163.29,9.784e-05,2]
[398566488,1765838510918,186.13123096,9.949e-05,2]
[398566489,1765838522371,300.0,0.00010047,2]
[398566490,1765838532596,-500.0,0.00010048,2]
[398566491,1765838532626,-500.0,0.00010048,2]
[398566492,1765838532656,-500.0,0.00010048,2]
[398566493,1765838532688,-500.0,0.00010048,2]
[398566494,1765838532718,-500.0,0.00010048,2]
[398566495,1765838532747,-500.0,0.00010048,2]
[398566496,1765838532776,-500.0,0.00010048,2]
[398566497,1765838532806,-500.0,0.00010048,2]
[398566498,1765838532835,-255.57539537,0.00010048,2]
[398566499,1765838532863,-500.0,0.00010048,2]
[398566500,1765838533291,-500.0,0.00010048,2]
[398566501,1765838533321,-500.0,0.00010048,2]
[398566502,1765838533353,-500.0,0.00010048,2]
[398566503,1765838533386,-500.0,0.00010048,2]
[398566504,1765838533667,-395.88858297,0.00010048,2]
[398566505,1765838533697,-500.0,0.00010048,2]
[398566506,1765838533726,-500.0,0.00010048,2]
[398566507,1765838533756,-500.0,0.00010048,2]
[398566508,1765838533784,-500.0,0.00010048,2]
[398566509,1765838533813,-500.0,0.00010048,2]
[398566510,1765838534053,-500.0,0.00010048,2]
[398566511,1765838534082,-421.92722333,0.00010048,2]
[398566512,1765838534111,-500.0,0.00010048,2]
[398566513,1765838534141,-500.0,0.00010048,2]
[398566514,1765838534170,-500.0,0.00010048,2]
[398566516,1765838534198,-500.0,0.00010048,2]
[398566517,1765838534227,-500.0,0.00010048,2]
[398566518,1765838534258,-500.0,0.00010048,2]
[398566519,1765838534286,-500.0,0.00010048,2]
[398566520,1765838534315,-500.0,0.00010048,2]
[398566530,1765838542387,-500.0,0.00010048,2]
[398566531,1765838542418,-500.0,0.00010048,2]
[398566532,1765838542451,-500.0,0.00010048,2]
[398566533,1765838542484,-500.0,0.00010048,2]
[398566534,1765838542515,-500.0,0.00010048,2]
[398566535,1765838542545,-500.0,0.00010048,2]
[398566536,1765838542576,-500.0,0.00010048,2]
[398566537,1765838542607,-500.0,0.00010048,2]
[398566538,1765838542640,-600.23026734,0.00010048,2]
[398566539,1765838542672,-299.54946532,0.00010048,2]
[398566540,1765838542822,-200.45053468,0.00010048,2]
[398566541,1765838542852,-500.0,0.00010048,2]
[398566542,1765838542881,-500.0,0.00010048,2]
[398566543,1765838542910,-500.0,0.00010048,2]
[398566544,1765838542940,-500.0,0.00010048,2]
[398566545,1765838542969,-500.0,0.00010048,2]
[398566546,1765838543003,-500.0,0.00010048,2]
[398566547,1765838543034,-500.0,0.00010048,2]
[398566548,1765838543067,-500.0,0.00010048,2]
[398566549,1765838543098,-500.0,0.00010048,2]
[398566550,1765838543130,-99.10893064,0.00010048,2]
[398566551,1765838543285,-400.89106936,0.00010048,2]
[398566552,1765838543317,-500.0,0.00010048,2]
[398566553,1765838543347,-500.0,0.00010048,2]
[398566554,1765838543378,-500.0,0.00010048,2]
[398566555,1765838543409,-500.0,0.00010048,2]
[398566556,1765838543441,-442.2206837,0.00010048,2]
[398566557,1765838543470,-1200.0,0.00010049,2]
[398566558,1765838543500,-561.0,0.00010049,2]
[398566559,1765838543530,-291.78649388,0.00010049,2]
[398566560,1765838544949,150.0,7.172e-05,2]
[398566561,1765838545086,150.0,7.824e-05,2]
[398566562,1765838549296,-150.0,8.476e-05,2]
[398566563,1765838549325,-100.04743464,9.128e-05,2]
[398566564,1765838551551,-49.95256536,9.128e-05,2]
[398566565,1765838551585,-150.0,9.78e-05,2]
[398566566,1765838551614,-1528.1838761,0.00010048,2]
[398566567,1765838551642,-156.587,0.0001005,2]
[398566568,1765838551672,-574.12855637,0.0001005,2]
[398566569,1765838551701,-1112.0,0.0001005,2]
[398566579,1765838615107,150.0,7.166e-05,2]
[398566580,1765838615535,150.0,7.817e-05,2]
[398566581,1765838624100,-150.0,8.469e-05,2]
[398566582,1765838624131,-150.0,9.12e-05,2]
[398566583,1765838624162,-150.0,9.772e-05,2]
[398566584,1765838624190,-300.0,0.00010048,2]
[398566585,1765838624219,-1200.0,0.00010048,2]
[398566586,1765838624248,-279.95333531,0.00010049,2]
[398566588,1765838642285,300.0,0.00010048,2]
[398566598,1765838668343,250.0,9.944e-05,2]
[398566601,1765838678530,285.46741421,9.903e-05,2]
[398566602,1765838678612,482.0,9.903e-05,2]
[398566603,1765838678811,482.0,0.0001004,2]
[398566607,1765838679440,150.0,9.903e-05,2]
[398566610,1765838679667,152.55389444,0.0001004,2]
[398566615,1765838681750,150.0,7.225e-05,2]
[398566618,1765838682170,150.0,7.882e-05,2]
[398566628,1765838702187,300.0,0.00010048,2]
[398566630,1765838702591,300.0,0.00010048,2]
[398566631,1765838704656,300.0,0.00010048,2]
[398566634,1765838710124,1200.0,0.00010048,2]
[398566640,1765838727963,574.12855637,0.00010044,2]
[398566646,1765838743866,463.95346436,9.903e-05,2]
[398566647,1765838743888,36.04653564,9.903e-05,2]
[398566648,1765838744001,500.0,0.0001004,2]
[398566649,1765838745174,150.0,9.903e-05,2]
[398566658,1765838746862,500.0,9.903e-05,2]
[398566659,1765838746912,500.0,0.0001004,2]
[398566661,1765838749646,500.0,9.903e-05,2]
[398566662,1765838751334,500.0,0.0001004,2]
[398566664,1765838754429,204.24208815,9.831e-05,2]
[398566665,1765838755285,4923.96715552,9.987e-05,2]
[398566667,1765838757358,233.41952932,9.831e-05,2]
[398566668,1765838759571,364.71801455,9.831e-05,2]
[398566669,1765838762306,524.66874702,9.831e-05,2]
[398566670,1765838762822,300.0,0.00010048,2]
[398566672,1765838789306,-423.52566476,9.148e-05,2]
[398566676,1765838810188,150.0,7.206e-05,2]
[398566677,1765838810439,150.0,7.861e-05,2]
[398566678,1765838819449,-150.0,8.516e-05,2]
[398566679,1765838819472,-228.66176276,9.148e-05,2]
[398566684,1765838839123,-66.86508348,9.148e-05,2]
[398566685,1765838839143,-300.0,0.00010047,2]
[398566686,1765838839164,-500.0,0.00010048,2]
[398566687,1765838839184,-371.20697706,0.00010048,2]
[398566688,1765838839203,-500.0,0.00010048,2]
[398566689,1765838839224,-500.0,0.00010048,2]
[398566690,1765838839243,-500.0,0.00010048,2]
[398566691,1765838839263,-390.61305106,0.00010048,2]
[398566692,1765838839284,-500.0,0.00010048,2]
[398566693,1765838839303,-226.73631449,0.00010048,2]
[398566694,1765838839323,-500.0,0.00010048,2]
[398566695,1765838839343,-500.0,0.00010048,2]
[398566696,1765838839362,-500.0,0.00010048,2]
[398566697,1765838839382,-409.23515246,0.00010048,2]
[398566698,1765838839404,-500.0,0.00010048,2]
[398566699,1765838839424,-4932.36900334,0.00010049,2]
[398566701,1765838875507,150.0,7.187e-05,2]
[398566702,1765838875936,150.0,7.84e-05,2]
[398566708,1765838963379,500.0,9.903e-05,2]
[398566709,1765838964218,150.0,9.903e-05,2]
[398566710,1765838969199,500.0,9.903e-05,2]
[398566718,1765839021769,-200.0,0.00011527,19]
[398566736,1765839032366,-286.34872056,9.949e-05,2]
[398566737,1765839032376,-209.7257219,9.95e-05,2]
[398566738,1765839032472,-804.01911172,9.95e-05,2]
[398566806,1765839038019,-378.80390583,9.949e-05,2]
[398566807,1765839038028,-1194.12528777,9.95e-05,2]
[398566808,1765839038039,-683949.31298843,9.95e-05,2]
[398566809,1765839038050,-160.7485602,9.995e-05,2]
[398566810,1765839038059,-500.0,0.0001004,2]
[398566811,1765839038068,-500.0,0.0001004,2]
[398566813,1765839038077,-561.0,0.0001004,2]
[398566814,1765839038087,-574.12855637,0.00010044,2]
[398566815,1765839038096,-300.0,0.00010048,2]
[398566816,1765839038105,-300.0,0.00010048,2]
[398566818,1765839038115,-1200.0,0.00010048,2]
[398566820,1765839038123,-1200.0,0.00010049,2]
[398566821,1765839038133,-279.64107603,0.00010049,2]
[398566822,1765839038146,-6444.31446272,0.00010049,2]
[398566823,1765839038155,-3066.746445,0.0001006,2]
[398566824,1765839038164,-2017.5148222,0.00010087,2]
[398566825,1765839038173,-1283.6099443,0.00010102,3]
[398566826,1765839038184,-169.230914,0.00010143,2]
[398566827,1765839038194,-500.0,0.0001015,2]
[398566828,1765839038203,-151.0,0.0001015,2]
[398566829,1765839038213,-151.0,0.0001015,2]
[398566830,1765839038223,-151.0,0.0001015,2]
[398566831,1765839038233,-151.0,0.0001015,2]
[398566832,1765839038242,-151.0,0.0001015,2]
[398566833,1765839038252,-151.0,0.0001015,2]
[398566834,1765839038262,-282.0,0.0001015,2]
[398566835,1765839038272,-151.0,0.0001015,2]
[398566836,1765839038282,-380.941,0.0001015,2]
[398566837,1765839038292,-170.14,0.0001015,2]
[398566838,1765839038303,-151.0,0.0001015,2]
[398566839,1765839038312,-151.0,0.0001015,2]
[398566840,1765839038321,-151.0,0.0001015,2]
[398566841,1765839038331,-151.0,0.0001015,2]
[398566842,1765839038340,-151.0,0.0001015,2]
[398566843,1765839038350,-151.0,0.0001015,2]
[398566844,1765839038360,-151.0,0.0001015,2]
[398566845,1765839038370,-151.0,0.0001015,2]
[398566846,1765839038379,-151.0,0.0001015,2]
[398566847,1765839038388,-151.0,0.0001015,2]
[398566848,1765839038397,-1000.0,0.0001015,2]
[398566849,1765839038406,-515.0,0.00010172,2]
[398566850,1765839038416,-150.0,0.00010172,2]
[398566851,1765839038425,-150.0,0.00010172,2]
[398566852,1765839038434,-500.0,0.00010172,2]
[398566853,1765839038443,-500.0,0.00010172,2]
[398566854,1765839038453,-500.0,0.00010172,2]
[398566855,1765839038462,-500.0,0.00010172,2]
[398566856,1765839038472,-151.0,0.00010172,2]
[398566857,1765839038481,-150.0,0.00010172,2]
[398566858,1765839038490,-500.0,0.00010172,2]
[398566859,1765839038499,-150.0,0.00010172,2]
[398566860,1765839038508,-500.0,0.00010172,2]
[398566861,1765839038517,-150.0,0.00010172,2]
[398566862,1765839038526,-482.0,0.00010177,2]
[398566863,1765839038536,-500.0,0.00010177,2]
[398566864,1765839038545,-500.0,0.00010177,2]
[398566865,1765839038556,-500.0,0.00010177,2]
[398566866,1765839038566,-150.0,0.00010177,2]
[398566867,1765839038575,-500.0,0.00010177,2]
[398566868,1765839038585,-502.45870968,0.00010177,2]
[398566869,1765839038595,-500.0,0.00010177,2]
[398566870,1765839038604,-500.0,0.00010177,2]
[398566871,1765839038613,-500.0,0.00010177,2]
[398566872,1765839038623,-467.0,0.00010177,2]
[398566873,1765839038632,-500.0,0.00010177,2]
[398566874,1765839038642,-681.0,0.00010177,2]
[398566875,1765839038651,-4923.9671555,0.00010178,2]
[398566876,1765839038661,-519.4499147,0.00010185,2]
[398566877,1765839038671,-9681.318813,0.00010185,2]
[398566878,1765839038680,-468.78151942,0.0001025,2]
[398566879,1765839038689,-843.80673495,0.0001025,2]
[398566880,1765839038698,-1500.10086213,0.0001025,2]
[398566881,1765839038707,-2343.90759708,0.0001025,2]
[398566882,1765839038717,-3375.2269398,0.0001025,2]
[398566883,1765839038726,-281.64918993,0.0001025,2]
[398566884,1765839038735,-321.5629037,0.0001025,2]
[398566885,1765839038744,-515.0,0.00010309,2]
[398566886,1765839038754,-150.0,0.00010309,2]
[398566887,1765839038763,-150.0,0.00010309,2]
[398566888,1765839038773,-500.0,0.00010309,2]
[398566889,1765839038782,-641.79806461,0.00010309,2]
[398566890,1765839038792,-500.0,0.00010309,2]
[398566891,1765839038801,-500.0,0.00010309,2]
[398566892,1765839038811,-150.0,0.00010309,2]
[398566893,1765839038820,-500.0,0.00010309,2]
[398566894,1765839038829,-150.0,0.00010309,2]
[398566895,1765839038838,-644.06051061,0.00010309,2]
[398566896,1765839038847,-150.0,0.00010309,2]
[398566897,1765839038856,-207.4409,0.00010309,2]
[398566898,1765839038866,-482.0,0.00010314,2]
[398566899,1765839038875,-264.97724191,0.00010314,2]
[398566900,1765839038885,-500.0,0.00010314,2]
[398566901,1765839038895,-500.0,0.00010314,2]
[398566902,1765839038905,-150.0,0.00010314,2]
[398566903,1765839038914,-500.0,0.00010314,2]
[398566904,1765839038923,-500.0,0.00010314,2]
[398566905,1765839038932,-500.0,0.00010314,2]
[398566906,1765839038943,-305.15246767,0.00010314,2]
[398566907,1765839038952,-467.0,0.00010314,2]
[398566908,1765839038961,-500.0,0.00010314,2]
[398566909,1765839038970,-681.0,0.00010314,2]
[398566910,1765839038979,-257.204261,0.00010314,2]
[398566911,1765839038989,-257.204261,0.00010314,2]
[398566912,1765839038999,-257.204261,0.00010314,2]
[398566913,1765839039008,-257.204261,0.00010314,2]
[398566914,1765839039017,-151.0,0.00010314,2]
[398566915,1765839039026,-412.026995,0.00010314,2]
[398566916,1765839039035,-151.0,0.00010314,2]
[398566917,1765839039045,-412.026995,0.00010314,2]
[398566918,1765839039054,-412.026995,0.00010314,2]
[398566919,1765839039063,-412.026995,0.00010314,2]
[398566920,1765839039073,-4923.9671555,0.00010369,2]
[398566921,1765839039082,-500.0,0.00010424,2]
[398566922,1765839039092,-515.0,0.00010446,2]
[398566923,1765839039101,-206.94496833,0.00010446,2]
[398566924,1765839039110,-150.0,0.00010446,2]
[398566925,1765839039119,-506.63919728,0.00010446,2]
[398566926,1765839039128,-500.0,0.00010446,2]
[398566927,1765839039140,-500.0,0.00010446,2]
[398566928,1765839039150,-150.0,0.00010446,2]
[398566929,1765839039159,-500.0,0.00010446,2]
[398566930,1765839039168,-150.0,0.00010446,2]
[398566931,1765839039179,-150.0,0.00010446,2]
[398566932,1765839039188,-2146.26463625,0.0001045,2]
[398566933,1765839039198,-475.08,0.00010451,2]
[398566934,1765839039207,-482.0,0.00010451,2]
[398566935,1765839039217,-500.0,0.00010451,2]
[398566936,1765839039227,-500.0,0.00010451,2]
[398566937,1765839039236,-202.81737922,0.00010451,2]
[398566938,1765839039245,-500.0,0.00010451,2]
[398566939,1765839039254,-500.0,0.00010451,2]
[398566940,1765839039263,-500.0,0.00010451,2]
[398566941,1765839039272,-467.0,0.00010451,2]
[398566942,1765839039282,-500.0,0.00010451,2]
[398566943,1765839039291,-681.0,0.00010451,2]
[398566944,1765839039300,-632.0,0.000105,2]
[398566945,1765839039309,-1361.0,0.000105,2]
[398566946,1765839039319,-2157.0,0.000105,2]
[398566947,1765839039328,-257.204261,0.00010551,2]
[398566948,1765839039337,-257.204261,0.00010551,2]
[398566949,1765839039347,-257.204261,0.00010551,2]
[398566950,1765839039356,-257.204261,0.00010551,2]
[398566951,1765839039365,-151.0,0.00010551,2]
[398566952,1765839039374,-412.026995,0.00010559,2]
[398566954,1765839039383,-151.0,0.00010559,2]
[398566955,1765839039392,-412.026995,0.00010559,2]
[398566956,1765839039401,-412.026995,0.00010559,2]
[398566957,1765839039410,-412.026995,0.00010559,2]
[398566958,1765839039419,-4923.9671555,0.00010559,2]
[398566959,1765839039428,-515.0,0.00010583,2]
[398566960,1765839039438,-213.19410294,0.00010583,2]
[398566961,1765839039447,-500.0,0.00010583,2]
[398566962,1765839039456,-500.0,0.00010583,2]
[398566963,1765839039464,-201.19237479,0.00010583,2]
[398566964,1765839039474,-217.01387877,0.00010583,2]
[398566965,1765839039483,-150.0,0.00010583,2]
[398566966,1765839039492,-152.94685263,0.00010583,2]
[398566967,1765839039501,-482.0,0.00010588,2]